fUST/lending_fUST_20260113
["ID","MTS","AMOUNT","RATE_DAILY","PERIOD"]
[401484925,1768260641849,-534.5,0.00015,2]
[401484927,1768260641858,-587.0,0.00015126,2]
[401484929,1768260641868,-10801.6433042,0.00015277,2]
[401484931,1768260641877,-1000.0,0.00015342,2]
[401484933,1768260641887,-1000.0,0.00015342,2]
[401484935,1768260641896,-2000.0,0.00015342,2]
[401484937,1768260641906,-500.0,0.00015342,2]
[401484939,1768260641915,-500.7387933,0.00015342,2]
[401484941,1768260641925,-1026.41190133,0.00015342,2]
[401484943,1768260641934,-737.22168392,0.00015342,2]
[401484945,1768260641943,-2000.0,0.00015342,2]
[401484947,1768260641953,-1000.0,0.00015342,2]
[401484949,1768260641962,-2000.0,0.00015342,2]
[401484951,1768260641972,-1648.74912763,0.00015342,2]
[401484953,1768260641981,-2000.0,0.00015342,2]
[401484955,1768260641990,-2000.0,0.00015342,2]
[401484957,1768260642000,-2000.0,0.00015342,2]
[401484959,1768260642009,-2000.0,0.00015342,2]
[401484961,1768260642018,-967.72472625,0.00015342,2]
[401484963,1768260642028,-2000.0,0.00015342,2]
[401484965,1768260642038,-517.83301398,0.00015342,2]
[401484967,1768260642047,-500.0,0.00015342,2]
[401484969,1768260642056,-2000.0,0.00015342,2]
[401484971,1768260642066,-2500.0,0.00015464,2]
[401484973,1768260642075,-2500.0,0.00015464,2]
[401484975,1768260642085,-2500.0,0.00015464,2]
[401484977,1768260642094,-2500.0,0.00015464,2]
[401484980,1768260642104,-2500.0,0.00015464,2]
[401484982,1768260642113,-2500.0,0.00015464,2]
[401484984,1768260642122,-374.68815725,0.00015464,2]
[401484985,1768260642132,-2500.0,0.00015464,2]
[401484986,1768260642140,-1397.40421659,0.00015464,2]
[401484987,1768260642150,-2500.0,0.00015464,2]
[401484988,1768260642159,-2500.0,0.00015464,2]
[401484989,1768260642168,-202.30233565,0.0001589,2]
[401484990,1768260642178,-2500.0,0.0001589,2]
[401484991,1768260642187,-1000.0,0.0001589,2]
[401484992,1768260642197,-2500.0,0.0001589,2]
[401484993,1768260642206,-1090.98190772,0.0001589,2]
[401484994,1768260642215,-1000.0,0.0001589,2]
[401484995,1768260642224,-231.95532903,0.0001589,2]
[401484996,1768260642234,-1000.0,0.0001589,2]
[401484998,1768260642243,-2000.0,0.0001589,2]
[401485000,1768260642253,-864.0,0.00015945,2]
[401485002,1768260642262,-500.0,0.00016012,2]
[401485004,1768260642272,-1664.74090695,0.00016012,2]
[401485006,1768260642282,-3000.0,0.00016012,2]
[401485008,1768260642292,-3000.0,0.00016012,2]
[401485010,1768260642302,-638.85906661,0.00016012,2]
[401485012,1768260642311,-2500.0,0.00016012,2]
[401485014,1768260642320,-3000.0,0.00016012,2]
[401485016,1768260642330,-3000.0,0.00016012,2]
[401485019,1768260642340,-3000.0,0.00016012,2]
[401485021,1768260642350,-6095.52266173,0.00016019,2]
[401485022,1768260642359,-500.0,0.00016438,2]
[401485024,1768260642369,-500.0,0.00016438,2]
[401485026,1768260642378,-277.59258088,0.00016438,2]
[401485029,1768260642388,-500.0,0.00016438,2]
[401485030,1768260642397,-3000.0,0.00016438,2]
[401485032,1768260642406,-408.95061748,0.00016489,2]
[401485035,1768260642421,-1000.0,0.0001656,2]
[401485036,1768260642430,-2500.0,0.0001656,2]
[401485040,1768260642441,-3033.9237819,0.0001656,2]
[401485043,1768260642450,-3500.0,0.0001656,2]
[401485045,1768260642459,-250.0,0.00016562,2]
[401485047,1768260642469,-823.0,0.00016596,2]
[401485049,1768260642479,-1041.66666667,0.00016948,2]
[401485051,1768260642488,-228.70879455,0.00016965,7]
[401485053,1768260642497,-3500.0,0.00016986,2]
[401485055,1768260642507,-81746.64048322,0.0001701,3]
[401485057,1768260642516,-1000.0,0.00017108,2]
[401485059,1768260642526,-5000.0,0.00017412,2]
[401485061,1768260642535,-2844.5358916,0.00017446,2]
[401485063,1768260642544,-1012.33286536,0.00017534,2]
[401485066,1768260642553,-1000.0,0.00017539,2]
[401485068,1768260642563,-2844.5358916,0.0001757,2]
[401485071,1768260642572,-507127.55301876,0.00017998,2]
[401485073,1768260642581,-75067.17408524,0.00018,2]
[401485075,1768260642591,-41693.40887456,0.00018,5]
[401485077,1768260642600,-2844.5358916,0.00018036,2]
[401485079,1768260642609,-66162.81741379,0.00018082,3]
[401485081,1768260642618,-1152.0,0.00018208,2]
[401485083,1768260642628,-2844.5358916,0.00018311,2]
[401485085,1768260642637,-728.0,0.0001835,2]
[401485087,1768260642646,-463.0764345,0.00018489,2]
[401485089,1768260642656,-2844.5358916,0.00018497,2]
[401485091,1768260642665,-728.0,0.0001867,2]
[401485093,1768260642675,-728.0,0.0001867,2]
[401485095,1768260642687,-268.88693948,0.00018715,2]
[401485105,1768260642778,-728.0,0.00018749,2]
[401485107,1768260642787,-496.47127164,0.00018815,2]
[401485109,1768260642796,-181.08010149,0.00018815,2]
[401485111,1768260642806,-187.78006525,0.00018815,2]
[401485113,1768260642815,-194.72792766,0.00018815,2]
[401485115,1768260642824,-201.93286099,0.00018815,2]
[401485117,1768260642834,-209.40437684,0.00018815,2]
[401485119,1768260642842,-217.15233878,0.00018815,2]
[401485121,1768260642851,-2398.4119403,0.00018815,2]
[401485123,1768260642860,-225.18697532,0.00018815,2]
[401485125,1768260642869,-233.51889341,0.00018815,2]
[401485127,1768260642878,-242.15909246,0.00018815,2]
[401485129,1768260642887,-251.11897888,0.00018815,2]
[401485131,1768260642896,-260.4103811,0.00018815,2]
[401485133,1768260642906,-270.0455652,0.00018815,2]
[401485135,1768260642915,-280.03725112,0.00018815,2]
[401485137,1768260642924,-290.39862941,0.00018815,2]
[401485139,1768260642933,-301.1433787,0.00018815,2]
[401485141,1768260642942,-2844.5358916,0.00018875,2]
[401485143,1768260642951,-303.10001603,0.000189,2]
[401485145,1768260642959,-22054.27,0.000189,3]
[401485147,1768260642969,-2844.5358916,0.00018954,2]
[401485149,1768260642978,-728.0,0.0001899,2]
[401485151,1768260642987,-151.0,0.00019019,2]
[401485152,1768260642996,-728.0,0.00019038,2]
[401485154,1768260643005,-303.10001603,0.00019089,2]
[401485156,1768260643014,-1366.0,0.00019105,2]
[401485158,1768260643023,-628.0,0.00019105,2]
[401485160,1768260643032,-2147.0,0.00019105,2]
[401485162,1768260643042,-715.0,0.00019105,2]
[401485164,1768260643051,-197.827,0.00019105,2]
[401485166,1768260643060,-417.0,0.00019105,2]
[401485168,1768260643069,-417.0,0.00019105,2]
[401485170,1768260643078,-352.88,0.00019178,2]
[401485172,1768260643087,-17700.54,0.000192,2]
[401485174,1768260643097,-160.0,0.00019218,2]
[401485176,1768260643106,-303.10001603,0.00019278,2]
[401485178,1768260643116,-1000.0,0.00019293,2]
[401485180,1768260643125,-244.0,0.00019293,2]
[401485182,1768260643134,-2844.5358916,0.00019318,2]
[401485184,1768260643143,-514.84070869,0.00019363,2]
[401485186,1768260643152,-2487.15318209,0.00019363,2]
[401485188,1768260643161,-6095.52266173,0.00019437,2]
[401485190,1768260643170,-151.0,0.00019449,2]
[401485192,1768260643180,-2844.53589163,0.00019464,2]
[401485194,1768260643189,-303.10001603,0.00019467,2]
[401485196,1768260643198,-728.0,0.00019516,2]
[401485198,1768260643208,-1112.92148416,0.00019551,2]
[401485200,1768260643217,-303.10001603,0.00019656,2]
[401485202,1768260643227,-250.0,0.00019726,2]
[401485204,1768260643237,-13357.57180481,0.0001981,2]
[401485206,1768260643246,-454.65002405,0.00019845,4]
[401485208,1768260643256,-20871.0,0.0001986,5]
[401485210,1768260643265,-5000.0,0.0001987,2]
[401485212,1768260643273,-261.32015771,0.00019876,2]
[401485214,1768260643283,-11051.4734637,0.00019876,2]
[401485216,1768260643292,-355.30354504,0.00019878,2]
[401485218,1768260643301,-511.41371224,0.00019878,2]
[401485220,1768260643310,-1421.21418014,0.00019878,2]
[401485221,1768260643320,-151.0,0.00019879,2]
[401485224,1768260643329,-1121.5924203,0.0001991,2]
[401485226,1768260643338,-42892.5929179,0.0001991,2]
[401485228,1768260643347,-180.023484,0.0001991,2]
[401485230,1768260643356,-3053.9768586,0.0001991,2]
[401485232,1768260643366,-9269.6880965,0.0001991,2]
[401485234,1768260643376,-533.88981491,0.00019911,2]
[401485236,1768260643385,-2579.17784983,0.00019911,2]
[401485238,1768260643395,-57213.20507358,0.0001995,2]
[401485256,1768260643536,-4747.00643768,0.0001995,2]
[401485258,1768260643547,-776.68808795,0.0001995,2]
[401485260,1768260643558,-386.51,0.0001995,2]
[401485264,1768260643585,-2737.0872181,0.0001995,2]
[401485267,1768260643602,-435.0,0.0001995,2]
[401485768,1768260785846,367.86630654,0.00030136,120]
[401485769,1768260791571,541.02929753,0.00030136,120]
[401485770,1768260793663,500.0,0.00030136,120]
[401485771,1768260799247,513.05196479,0.00030136,120]
[401485772,1768260808562,500.0,0.00030136,120]
[401485773,1768260810368,500.0,0.00030136,120]
[401485774,1768260812498,508.94925706,0.00030136,120]
[401485775,1768260813618,526.96276689,0.00030136,120]
[401485776,1768260816057,505.65027576,0.00030136,120]
[401485777,1768260818579,560.57693131,0.00030136,120]
[401485778,1768260820591,558.31347945,0.00030136,120]
[401485779,1768260820962,519.43827711,0.00030136,120]
[401485780,1768260822368,508.83402592,0.00030136,120]
[401485781,1768260822820,516.1137974,0.00030136,120]
[401485782,1768260824850,516.44203319,0.00030136,120]
[401485783,1768260826801,515.7274123,0.00030136,120]
[401485784,1768260828712,505.65299584,0.00030136,120]
[401485785,1768260830495,522.94274885,0.00030136,120]
[401485786,1768260831993,500.0,0.00030136,120]
[401485787,1768260834971,562.68358289,0.00030136,120]
[401485788,1768260835990,551.10500754,0.00030136,120]
[401485789,1768260840425,520.31957726,0.00030136,120]
[401485790,1768260842627,524.74605874,0.00030136,120]
[401485791,1768260843279,500.0,0.00030136,120]
[401485792,1768260847585,511.18294025,0.00030136,120]
[401485793,1768260916031,177.82031664,0.00030136,120]
[401485794,1768261034027,225.82142365,0.00024147,48]
[401485795,1768261034745,225.82142365,0.00024427,63]
[401485796,1768261034978,502.01655751,0.00030136,120]
[401485797,1768261035867,225.82142365,0.00024708,79]
[401485798,1768261036560,52.8317715,0.00024988,94]
[401485799,1768261036582,172.98965215,0.00024988,94]
[401485800,1768261036655,517.40610339,0.00030136,120]
[401485801,1768261037618,88.39094025,0.00025268,110]
[401485802,1768261037640,137.4304834,0.00025268,110]
[401485803,1768261044444,504.14116417,0.00030136,120]
[401485804,1768261049561,525.13125065,0.00030136,120]
[401485805,1768261054897,500.40771534,0.00030136,120]
[401485806,1768261057690,508.58098491,0.00030136,120]
[401485807,1768261062490,503.89592077,0.00030136,120]
[401485808,1768261064346,500.0,0.00030136,120]
[401485809,1768261066586,511.50119687,0.00030136,120]
[401485810,1768261069846,567.2463868,0.00030136,120]
[401485811,1768261093797,479.5719931,0.00030136,120]
[401485812,1768261100325,500.0,0.00030136,120]
[401485813,1768261104382,524.35320425,0.00030136,120]
[401485814,1768261106225,524.01884647,0.00030136,120]
[401485815,1768261108264,500.0,0.00030136,120]
[401485816,1768261111769,538.87788402,0.00030136,120]
[401485817,1768261115689,525.07842632,0.00030136,120]
[401485818,1768261122256,551.38296149,0.00030136,120]
[401485819,1768261124135,545.29339236,0.00030136,120]
[401485820,1768261130848,521.00459565,0.00030136,120]
[401485821,1768261139167,501.98982079,0.00030136,120]
[401485824,1768261283278,168.76687736,0.00030136,120]
[401485853,1768261832046,-175.804,0.00012316,2]
[401485855,1768261832057,-594.0,0.00012316,2]
[401485857,1768261832067,-301.64165109,0.00012378,2]
[401485859,1768261832076,-300.0,0.00012465,2]
[401485861,1768261832085,-1200.0,0.00012465,2]
[401485863,1768261832093,-7135.63293722,0.00012466,2]
[401485865,1768261832104,-1423.00869472,0.00012466,2]
[401485891,1768261838098,-5368.55439877,0.00012466,2]
[401485892,1768261838112,-8033.80454681,0.00012466,2]
[401485893,1768261838141,-37632.20691679,0.00012466,2]
[401485894,1768261838238,-940406.79250569,0.00012466,2]
[401485895,1768261838249,-214.32,0.00012566,2]
[401485896,1768261838259,-533.59953373,0.00012566,2]
[401485897,1768261838268,-250.44659614,0.00012566,2]
[401485898,1768261838279,-500.0,0.00012566,2]
[401485899,1768261838289,-500.0,0.00012566,2]
[401485900,1768261838300,-500.0,0.00012566,2]
[401485901,1768261838312,-500.0,0.00012566,2]
[401485902,1768261838323,-500.0,0.00012566,2]
[401485903,1768261838334,-500.0,0.00012566,2]
[401485904,1768261838344,-500.0,0.00012566,2]
[401485905,1768261838357,-500.0,0.00012566,2]
[401485906,1768261838368,-500.0,0.00012566,2]
[401485907,1768261838380,-438.79287572,0.00012566,2]
[401485908,1768261838391,-500.0,0.00012566,2]
[401485909,1768261838404,-602.48085159,0.00012566,2]
[401485910,1768261838413,-380.74264675,0.00012566,2]
[401485911,1768261838422,-500.0,0.00012566,2]
[401485912,1768261838431,-623.24105615,0.00012566,2]
[401485913,1768261838441,-500.0,0.00012566,2]
[401485914,1768261838451,-500.0,0.00012566,2]
[401485915,1768261838462,-500.0,0.00012566,2]
[401485916,1768261838473,-500.0,0.00012566,2]
[401485917,1768261838486,-500.0,0.00012566,2]
[401485918,1768261838497,-500.0,0.00012566,2]
[401485919,1768261838507,-500.0,0.00012566,2]
[401485920,1768261838517,-235.9156729,0.00012566,2]
[401485921,1768261838527,-500.0,0.00012566,2]
[401485922,1768261838538,-357.04287724,0.00012566,2]
[401485923,1768261838548,-500.0,0.00012566,2]
[401485924,1768261838560,-341.59355798,0.00012566,2]
[401485925,1768261838570,-540.12702532,0.00012566,2]
[401485926,1768261838581,-151.0,0.000126,2]
[401485927,1768261838592,-151.0,0.000126,2]
[401485928,1768261838602,-151.0,0.000126,2]
[401485929,1768261838612,-151.0,0.000126,2]
[401485930,1768261838623,-151.0,0.000126,2]
[401485931,1768261838633,-151.0,0.000126,2]
[401485932,1768261838644,-151.0,0.000126,2]
[401485933,1768261838654,-151.0,0.000126,2]
[401485934,1768261838664,-151.0,0.000126,2]
[401485935,1768261838674,-151.0,0.000126,2]
[401485936,1768261838684,-151.0,0.000126,2]
[401485937,1768261838694,-151.0,0.000126,2]
[401485938,1768261838705,-151.0,0.000126,2]
[401485939,1768261838715,-151.0,0.000126,2]
[401485940,1768261838726,-151.0,0.000126,2]
[401485941,1768261838737,-151.0,0.000126,2]
[401485942,1768261838747,-151.0,0.000126,2]
[401485943,1768261838758,-151.0,0.000126,2]
[401485944,1768261838769,-300.0,0.00012816,2]
[401485945,1768261838779,-300.0,0.00012816,2]
[401485946,1768261838790,-300.0,0.00012816,2]
[401485947,1768261838801,-300.0,0.00012816,2]
[401485948,1768261838812,-300.0,0.00012816,2]
[401485949,1768261838823,-300.0,0.00012816,2]
[401485950,1768261838833,-300.0,0.00012816,2]
[401485951,1768261838844,-300.0,0.00012816,2]
[401485952,1768261838856,-300.0,0.00012816,2]
[401485953,1768261838867,-300.0,0.00012816,2]
[401485954,1768261838878,-300.0,0.00012816,2]
[401485955,1768261838889,-300.0,0.00012816,2]
[401485956,1768261838899,-300.0,0.00012816,2]
[401485957,1768261838910,-300.0,0.00012816,2]
[401485958,1768261838922,-300.0,0.00012816,2]
[401485959,1768261838933,-600.0,0.00012816,2]
[401485960,1768261838944,-214.32301538,0.0001284,2]
[401485961,1768261838954,-261.32015771,0.00012863,2]
[401485962,1768261838965,-200.0,0.00012863,2]
[401485963,1768261838975,-6095.52266178,0.000129,2]
[401485964,1768261838989,-7143.91308147,0.00013,2]
[401485965,1768261839000,-500.0,0.00013273,2]
[401485966,1768261839010,-500.0,0.00013273,2]
[401485967,1768261839020,-500.0,0.00013273,2]
[401485968,1768261839032,-500.0,0.00013273,2]
[401485969,1768261839042,-500.0,0.00013273,2]
[401485970,1768261839054,-500.0,0.00013273,2]
[401485971,1768261839064,-500.0,0.00013273,2]
[401485972,1768261839075,-500.0,0.00013273,2]
[401485973,1768261839085,-500.0,0.00013273,2]
[401485974,1768261839095,-500.0,0.00013273,2]
[401485975,1768261839106,-587.83194945,0.00013273,2]
[401485976,1768261839116,-500.0,0.00013273,2]
[401485977,1768261839127,-500.0,0.00013273,2]
[401485978,1768261839137,-500.0,0.00013273,2]
[401485979,1768261839147,-500.0,0.00013273,2]
[401485980,1768261839156,-500.0,0.00013273,2]
[401485981,1768261839166,-500.0,0.00013273,2]
[401485982,1768261839301,-500.0,0.00013273,2]
[401485983,1768261839315,-500.0,0.00013273,2]
[401485984,1768261839324,-500.0,0.00013273,2]
[401485985,1768261839332,-500.0,0.00013273,2]
[401485986,1768261839341,-500.0,0.00013273,2]
[401485987,1768261839350,-500.0,0.00013273,2]
[401485988,1768261839359,-500.0,0.00013273,2]
[401485989,1768261839368,-500.0,0.00013273,2]
[401485990,1768261839377,-500.0,0.00013273,2]
[401485991,1768261839386,-500.0,0.00013273,2]
[401485992,1768261839395,-500.0,0.00013273,2]
[401485993,1768261839405,-500.0,0.00013273,2]
[401485994,1768261839414,-500.0,0.00013273,2]
[401485995,1768261839422,-500.0,0.00013273,2]
[401485996,1768261839431,-500.0,0.00013273,2]
[401485997,1768261839440,-500.0,0.00013273,2]
[401485998,1768261839449,-400.46467622,0.00013273,2]
[401485999,1768261839458,-500.0,0.00013273,2]
[401486000,1768261839467,-500.0,0.00013273,2]
[401486001,1768261839476,-500.0,0.00013273,2]
[401486002,1768261839484,-500.0,0.00013273,2]
[401486003,1768261839494,-500.0,0.00013273,2]
[401486004,1768261839503,-500.0,0.00013273,2]
[401486005,1768261839512,-500.0,0.00013273,2]
[401486006,1768261839520,-500.0,0.00013273,2]
[401486007,1768261839529,-500.0,0.00013273,2]
[401486008,1768261839538,-500.0,0.00013273,2]
[401486009,1768261839546,-500.0,0.00013273,2]
[401486010,1768261839555,-420.0,0.00013677,2]
[401486011,1768261839564,-500.0,0.00013698,2]
[401486012,1768261839573,-500.0,0.00013698,2]
[401486013,1768261839582,-500.0,0.00013698,2]
[401486014,1768261839591,-500.0,0.00013698,2]
[401486015,1768261839599,-500.0,0.00013698,2]
[401486016,1768261839608,-500.0,0.00013698,2]
[401486017,1768261839617,-500.0,0.00013698,2]
[401486018,1768261839625,-500.0,0.00013698,2]
[401486019,1768261839634,-500.0,0.00013698,2]
[401486020,1768261839643,-500.0,0.00013698,2]
[401486021,1768261839651,-500.0,0.00013698,2]
[401486022,1768261839661,-500.0,0.00013698,2]
[401486023,1768261839670,-500.0,0.00013698,2]
[401486024,1768261839678,-500.0,0.00013698,2]
[401486025,1768261839687,-500.0,0.00013698,2]
[401486026,1768261839696,-500.0,0.00013698,2]
[401486027,1768261839705,-329.28962388,0.00013698,2]
[401486028,1768261839713,-1393.247444,0.00013699,2]
[401486029,1768261839722,-11886.587496,0.00013699,2]
[401486030,1768261839731,-17379.6692671,0.00013699,2]
[401486031,1768261839739,-1000.0,0.00013699,2]
[401486032,1768261839749,-500.0,0.00013699,2]
[401486033,1768261839757,-500.0,0.00013699,2]
[401486034,1768261839766,-612.0897626,0.00013699,2]
[401486035,1768261839775,-500.0,0.00013699,2]
[401486036,1768261839784,-500.0,0.00013699,2]
[401486037,1768261839793,-500.0,0.00013699,2]
[401486038,1768261839801,-500.0,0.00013699,2]
[401486039,1768261839810,-500.0,0.00013699,2]
[401486040,1768261839819,-500.0,0.00013699,2]
[401486041,1768261839828,-500.0,0.00013699,2]
[401486042,1768261839837,-500.0,0.00013699,2]
[401486043,1768261839846,-610.75742393,0.00013699,2]
[401486044,1768261839854,-500.0,0.00013699,2]
[401486045,1768261839863,-500.0,0.00013699,2]
[401486046,1768261839872,-500.0,0.00013699,2]
[401486047,1768261839881,-500.0,0.00013699,2]
[401486048,1768261839895,-500.0,0.00013699,2]
[401486049,1768261839914,-252.89893897,0.00013699,2]
[401486050,1768261839925,-500.0,0.00013699,2]
[401486051,1768261839934,-500.0,0.00013699,2]
[401486052,1768261839943,-500.0,0.00013699,2]
[401486053,1768261839954,-500.0,0.00013699,2]
[401486054,1768261839963,-500.0,0.00013699,2]
[401486055,1768261839973,-500.0,0.00013699,2]
[401486056,1768261839982,-500.0,0.00013699,2]
[401486057,1768261839995,-500.0,0.00013699,2]
[401486058,1768261840004,-500.0,0.00013699,2]
[401486059,1768261840013,-500.0,0.00013699,2]
[401486060,1768261840023,-502.65928848,0.00013699,2]
[401486061,1768261840033,-500.0,0.00013699,2]
[401486062,1768261840043,-227.11320444,0.00013699,2]
[401486063,1768261840052,-500.0,0.00013699,2]
[401486064,1768261840062,-461.16799506,0.00013699,2]
[401486065,1768261840071,-500.0,0.00013699,2]
[401486066,1768261840080,-500.0,0.00013699,2]
[401486067,1768261840089,-500.0,0.00013699,2]
[401486068,1768261840098,-500.0,0.00013699,2]
[401486069,1768261840112,-500.0,0.00013699,2]
[401486070,1768261840132,-500.0,0.00013699,2]
[401486071,1768261840153,-500.0,0.00013699,2]
[401486072,1768261840171,-500.28128039,0.00013699,2]
[401486073,1768261840182,-500.0,0.00013699,2]
[401486074,1768261840191,-441.99834149,0.00013699,2]
[401486075,1768261840204,-500.0,0.00013699,2]
[401486076,1768261840217,-500.0,0.00013699,2]
[401486077,1768261840227,-500.0,0.00013699,2]
[401486078,1768261840237,-500.0,0.00013699,2]
[401486079,1768261840247,-500.0,0.00013699,2]
[401486080,1768261840256,-500.0,0.00013699,2]
[401486081,1768261840266,-500.0,0.00013699,2]
[401486082,1768261840275,-298.79354709,0.00013699,2]
[401486083,1768261840287,-500.0,0.00013699,2]
[401486084,1768261840296,-500.0,0.00013699,2]
[401486085,1768261840304,-500.0,0.00013699,2]
[401486086,1768261840313,-500.0,0.00013699,2]
[401486087,1768261840322,-500.0,0.00013699,2]
[401486088,1768261840332,-500.0,0.00013699,2]
[401486089,1768261840343,-500.0,0.00013699,2]
[401486090,1768261840351,-500.0,0.00013699,2]
[401486091,1768261840360,-159.64533136,0.00013699,2]
[401486092,1768261840370,-500.0,0.00013699,2]
[401486093,1768261840379,-500.0,0.00013699,2]
[401486094,1768261840388,-313.20652716,0.00013699,2]
[401486095,1768261840397,-500.0,0.00013699,2]
[401486096,1768261840406,-500.0,0.00013699,2]
[401486097,1768261840415,-366.95119537,0.00013699,2]
[401486098,1768261840423,-500.0,0.00013699,2]
[401486099,1768261840432,-500.0,0.00013699,2]
[401486100,1768261840441,-500.0,0.00013699,2]
[401486101,1768261840450,-500.0,0.00013699,2]
[401486102,1768261840457,-296.07308979,0.00013699,2]
[401486103,1768261840466,-500.0,0.00013699,2]
[401486104,1768261840475,-500.0,0.00013699,2]
[401486105,1768261840483,-500.0,0.00013699,2]
[401486106,1768261840492,-501.55614282,0.00013699,2]
[401486107,1768261840501,-500.0,0.00013699,2]
[401486108,1768261840509,-500.0,0.00013699,2]
[401486109,1768261840518,-363.0,0.00013712,2]
[401486110,1768261840527,-1000.0,0.00013821,2]
[401486111,1768261840536,-1000.0,0.00013821,2]
[401486112,1768261840545,-958.38483251,0.00013821,2]
[401486113,1768261840554,-1000.0,0.00013821,2]
[401486114,1768261840562,-1113.91769968,0.00013821,2]
[401486115,1768261840571,-1000.0,0.00013821,2]
[401486116,1768261840580,-1000.0,0.00013821,2]
[401486117,1768261840589,-1000.0,0.00013821,2]
[401486118,1768261840597,-1000.0,0.00013821,2]
[401486119,1768261840607,-290.33203274,0.00013821,2]
[401486120,1768261840615,-1000.0,0.00013821,2]
[401486121,1768261840624,-1000.0,0.00013821,2]
[401486122,1768261840632,-1000.0,0.00013821,2]
[401486123,1768261840641,-1000.0,0.00013821,2]
[401486124,1768261840650,-1000.0,0.00013821,2]
[401486125,1768261840659,-1000.0,0.00013821,2]
[401486126,1768261840667,-1000.0,0.00013821,2]
[401486127,1768261840677,-1000.0,0.00013821,2]
[401486128,1768261840685,-1000.0,0.00013821,2]
[401486129,1768261840694,-1000.0,0.00013821,2]
[401486130,1768261840703,-1000.0,0.00013821,2]
[401486131,1768261840711,-1000.0,0.00013821,2]
[401486132,1768261840721,-1000.0,0.00013821,2]
[401486133,1768261840729,-1000.0,0.00013821,2]
[401486134,1768261840738,-1000.0,0.00013821,2]
[401486135,1768261840748,-1000.0,0.00013821,2]
[401486136,1768261840756,-1000.0,0.00013821,2]
[401486137,1768261840765,-1000.0,0.00013821,2]
[401486138,1768261840774,-500.0,0.00013821,2]
[401486139,1768261840783,-798.59280651,0.00013821,2]
[401486140,1768261840792,-1000.0,0.00013821,2]
[401486141,1768261840800,-1000.0,0.00013821,2]
[401486142,1768261840809,-1000.0,0.00013821,2]
[401486143,1768261840818,-1000.0,0.00013821,2]
[401486144,1768261840827,-332.40668052,0.00013821,2]
[401486145,1768261840835,-1000.0,0.00013821,2]
[401486146,1768261840844,-1000.0,0.00013821,2]
[401486147,1768261840854,-1000.0,0.00013821,2]
[401486148,1768261840863,-2805.98431126,0.00013839,2]
[401486149,1768261840871,-294.20360383,0.00013973,2]
[401486150,1768261840880,-720.0,0.00014098,2]
[401486151,1768261840889,-1000.0,0.00014247,2]
[401486152,1768261840898,-1000.0,0.00014247,2]
[401486153,1768261840907,-1002.38932755,0.00014247,2]
[401486154,1768261840916,-1017.77857831,0.00014247,2]
[401486155,1768261840925,-1000.0,0.00014247,2]
[401486156,1768261840934,-501.52224721,0.00014247,2]
[401486157,1768261840943,-1000.0,0.00014247,2]
[401486158,1768261840951,-1000.0,0.00014247,2]
[401486159,1768261840960,-500.93038909,0.00014247,2]
[401486160,1768261840969,-581.34216933,0.00014247,2]
[401486161,1768261840977,-1000.0,0.00014247,2]
[401486162,1768261840990,-1000.0,0.00014247,2]
[401486163,1768261841000,-1000.0,0.00014247,2]
[401486164,1768261841008,-1000.0,0.00014247,2]
[401486165,1768261841017,-353.02410941,0.00014247,2]
[401486166,1768261841026,-1000.0,0.00014247,2]